fUSD/lending_fUSD_20251223
["ID","MTS","AMOUNT","RATE_DAILY","PERIOD"]
[399575752,1766509839568,-151.0,0.00030129,2]
[399575753,1766509839582,-1600.0,0.000302,7]
[399575754,1766509839592,-153.3,0.000302,30]
[399575755,1766509839603,-200.0,0.00030439,2]
[399575756,1766509839614,-443.85292262,0.00030992,14]
[399575757,1766509839625,-2996.68216379,0.000315,2]
[399575758,1766509839636,-151.0,0.00031607,2]
[399575759,1766509839647,-1000.0,0.00032876,2]
[399575760,1766509839658,-1000.0,0.00032876,2]
[399575761,1766509839668,-469.78170475,0.00032876,2]
[399575762,1766509839679,-421.35,0.00032876,2]
[399575763,1766509839689,-421.35,0.00032876,2]
[399575764,1766509839700,-421.35,0.00032876,2]
[399575765,1766509839710,-421.35,0.00032876,2]
[399575766,1766509839721,-421.35,0.00032876,2]
[399575767,1766509839731,-421.35,0.00032876,2]
[399575768,1766509839742,-421.35,0.00032876,2]
[399575769,1766509839752,-421.35,0.00032876,2]
[399575770,1766509839763,-421.35,0.00032876,2]
[399575771,1766509839773,-421.35,0.00032876,2]
[399575772,1766509839784,-421.35,0.00032876,2]
[399575773,1766509839795,-421.35,0.00032876,2]
[399575774,1766509839808,-421.35,0.00032876,2]
[399575775,1766509839819,-421.35,0.00032876,2]
[399575776,1766509839831,-421.35,0.00032876,2]
[399575777,1766509839840,-421.35,0.00032876,2]
[399575778,1766509839851,-421.35,0.00032876,2]
[399575779,1766509839861,-421.35,0.00032876,2]
[399575780,1766509839872,-421.35,0.00032876,2]
[399575781,1766509839882,-421.35,0.00032876,2]
[399575782,1766509839892,-421.35,0.00032876,2]
[399575783,1766509839902,-421.35,0.00032876,2]
[399575784,1766509839913,-421.35,0.00032876,2]
[399575785,1766509839924,-421.35082283,0.00032876,2]
[399575786,1766509839935,-1514.0,0.00032876,120]
[399575787,1766509839945,-522.24,0.00032877,2]
[399575788,1766509839955,-155.24,0.000329,14]
[399575789,1766509839966,-165.37,0.000329,14]
[399575790,1766509839977,-150.0,0.00033,14]
[399575791,1766509839987,-151.0,0.00033086,3]
[399575792,1766509839997,-1118.4173,0.00033787,2]
[399575793,1766509840007,-312.1,0.000339,30]
[399575794,1766509840018,-2996.68216379,0.00033967,2]
[399575795,1766509840029,-199.0,0.00034246,30]
[399575796,1766509840040,-150.0,0.00034452,5]
[399575797,1766509840050,-151.0,0.00034564,4]
[399575798,1766509840061,-153.3,0.000346,30]
[399575799,1766509840071,-1514.0,0.00034794,120]
[399575800,1766509840081,-104.83548996,0.00034931,31]
[399575801,1766509840101,-94.16451004,0.00034931,31]
[399575802,1766509840112,-300.0,0.00035,5]
[399575803,1766509840122,-176.80033519,0.00035616,32]
[399575805,1766509840135,-22.19966481,0.00035616,32]
[399575806,1766509840145,-423.21205381,0.000357,14]
[399575807,1766509840157,-944.33,0.000357,14]
[399575808,1766509840169,-232.45794619,0.000357,14]
[399575809,1766509840179,-1655.82351229,0.00036,10]
[399575810,1766509840189,-247.7695039,0.00036,2]
[399575811,1766509840199,-151.0,0.00036043,4]
[399575812,1766509840209,-199.0,0.00036301,33]
[399575813,1766509840219,-2996.68216379,0.00036433,2]
[399575814,1766509840229,-165.37,0.000365,14]
[399575815,1766509840240,-1514.0,0.00036712,120]
[399575816,1766509840250,-199.0,0.00036986,34]
[399575817,1766509840259,-300.0,0.00037,120]
[399575818,1766509840269,-151.0,0.00037521,5]
[399575819,1766509840279,-199.0,0.00037671,35]
[399575820,1766509840289,-1840.0,0.000378,2]
[399575821,1766509840299,-2000.0,0.000378,2]
[399575822,1766509840309,-974.77397844,0.0003783,2]
[399575823,1766509840319,-155.24,0.000379,14]
[399575824,1766509840329,-356.98,0.00038,30]
[399575825,1766509840339,-5542.65538507,0.00038,120]
[399575826,1766509840349,-500.0,0.0003811,60]
[399575827,1766509840359,-152.11206649,0.0003811,60]
[399575828,1766509840372,-150.0,0.0003811,60]
[399575829,1766509840744,-500.0,0.00038137,60]
[399575830,1766509840755,-150.0,0.00038137,60]
[399575831,1766509840765,-531.35954201,0.00038165,60]
[399575832,1766509840775,-150.0,0.00038165,60]
[399575833,1766509840785,-199.0,0.00038356,36]
[399575834,1766509840795,-1514.0,0.0003863,120]
[399575835,1766509840805,-554.09,0.0003863,2]
[399575836,1766509840815,-554.09,0.0003863,2]
[399575837,1766509840825,-554.09,0.0003863,2]
[399575838,1766509840835,-554.09,0.0003863,2]
[399575839,1766509840845,-554.09,0.0003863,2]
[399575840,1766509840855,-1108.18,0.0003863,2]
[399575841,1766509840864,-554.09,0.0003863,2]
[399575842,1766509840874,-554.09,0.0003863,2]
[399575843,1766509840884,-554.09,0.0003863,2]
[399575844,1766509840894,-554.09,0.0003863,2]
[399575845,1766509840903,-554.09,0.0003863,2]
[399575846,1766509840913,-200.0,0.00038887,3]
[399575847,1766509840923,-322.6107,0.00038887,3]
[399575848,1766509840933,-334.5472959,0.00038887,3]
[399575849,1766509840946,-346.92554585,0.00038887,3]
[399575850,1766509840957,-359.76179104,0.00038887,3]
[399575851,1766509840967,-373.07297731,0.00038887,3]
[399575852,1766509840976,-386.87667747,0.00038887,3]
[399575853,1766509840987,-401.19111454,0.00038887,3]
[399575854,1766509840997,-416.03518578,0.00038887,3]
[399575855,1766509841007,-431.42848765,0.00038887,3]
[399575856,1766509841017,-574.12855637,0.00038887,3]
[399575857,1766509841027,-447.3913417,0.00038887,3]
[399575858,1766509841040,-595.37131296,0.00038887,3]
[399575859,1766509841051,-463.94482134,0.00038887,3]
[399575860,1766509841062,-617.40005154,0.00038887,3]
[399575861,1766509841072,-481.11077973,0.00038887,3]
[399575862,1766509841083,-640.24385345,0.00038887,3]
[399575863,1766509841095,-498.91187858,0.00038887,3]
[399575864,1766509841105,-663.93287602,0.00038887,3]
[399575865,1766509841114,-517.37161808,0.00038887,3]
[399575866,1766509841124,-151.0,0.00038887,3]
[399575867,1766509841135,-200.0,0.00038887,3]
[399575868,1766509841145,-688.49839244,0.00038887,3]
[399575869,1766509841155,-536.51436795,0.00038887,3]
[399575870,1766509841165,-171.61853396,0.00038887,3]
[399575871,1766509841175,-713.97283296,0.00038887,3]
[399575872,1766509841185,-454.94813889,0.00038887,3]
[399575873,1766509841195,-500.0,0.00038887,3]
[399575874,1766509841205,-740.38982778,0.00038887,3]
[399575875,1766509841215,-500.0,0.00038887,3]
[399575876,1766509841224,-767.7842514,0.00038887,3]
[399575877,1766509841234,-500.0,0.00038887,3]
[399575878,1766509841244,-502.54124371,0.00038887,3]
[399575879,1766509841254,-500.84177694,0.00038887,3]
[399575880,1766509841264,-500.0,0.00038887,3]
[399575881,1766509841274,-500.0,0.00038887,3]
[399575882,1766509841284,-500.0,0.00038887,3]
[399575883,1766509841293,-500.0,0.00038887,3]
[399575884,1766509841303,-500.0,0.00038887,3]
[399575885,1766509841314,-587.07832485,0.00038887,3]
[399575886,1766509841323,-1000.0,0.000389,120]
[399575887,1766509841333,-2996.68216379,0.000389,2]
[399575888,1766509841343,-511.81513334,0.000389,7]
[399575889,1766509841354,-2803.4098618,0.000389,2]
[399575890,1766509841365,-150.0,0.00038989,20]
[399575891,1766509841378,-301.4414445,0.0003899,2]
[399575892,1766509841388,-301.4414445,0.0003899,2]
[399575893,1766509841398,-3057.1574349,0.00038996,2]
[399575894,1766509841408,-1090.24693266,0.00038999,30]
[399575895,1766509841420,-1090.24693266,0.00038999,30]
[399575896,1766509841430,-300.240054,0.00038999,93]
[399575897,1766509841441,-500.0,0.00038999,2]
[399575898,1766509841452,-500.0,0.00038999,2]
[399575899,1766509841462,-593.22569855,0.00038999,2]
[399575900,1766509841472,-300.0,0.00038999,10]
[399575901,1766509841482,-2121.78794483,0.00039,31]
[399575902,1766509841491,-113804.83816222,0.00039,2]
[399575903,1766509842115,-309.0760002,0.00039,2]
[399575904,1766509842133,-576.965,0.00018192,2]
[399575905,1766509842142,-295.175,0.00039,2]
[399575906,1766509842153,-4806651.83908498,0.00039,2]
[399575907,1766509842169,-1820.02,0.00039,2]
[399575925,1766509843301,-554.09,0.0003863,2]
[399575926,1766509843311,-500.0,0.00038955,2]
[399575927,1766509843321,-500.0,0.00038956,2]
[399575928,1766509843332,-500.0,0.00038957,2]
[399575929,1766509843342,-499.9999,0.00038958,2]
[399575930,1766509843351,-6509.05320798,0.00039,2]
[399575931,1766509843408,-7166.73689982,0.00039,2]
[399575932,1766509843614,-5756.5493945,0.00039,2]
[399575933,1766509843626,-464106.13894149,0.00039,2]
[399575934,1766509843638,-182863.22752364,0.00039,2]
[399575935,1766509843650,-550.50950003,0.00039,2]
[399575936,1766509843662,-1130.776072,0.00039,2]
[399575961,1766509846151,-11012.33321305,0.00039,2]
[399575962,1766509846415,-312.5,0.00039,2]
[399575963,1766509846502,-1118.4173,0.00039,2]
[399575964,1766509846528,-262.46704134,0.00039,2]
[399575974,1766510468003,-490.69,0.00013699,2]
[399575975,1766510468030,-263.0,0.00013699,2]
[399575976,1766510468056,-300.0,0.00016411,2]
[399575977,1766510468082,-1200.0,0.00016411,2]
[399575978,1766510468109,-300.0,0.00016411,2]
[399575979,1766510468133,-19624.8012,0.00016412,2]
[399575980,1766510468167,-1198.67286557,0.000165,2]
[399575981,1766510468194,-250.0,0.00016501,2]
[399575982,1766510468220,-200.0,0.00016501,2]
[399575983,1766510468244,-288.36983735,0.00016503,3]
[399575984,1766510468271,-190.84756848,0.00016505,2]
[399575985,1766510468298,-200.0,0.00016506,2]
[399575986,1766510468323,-150.0,0.0001651,2]
[399575987,1766510468353,-250.42,0.00016511,2]
[399575988,1766510468397,-500.0,0.00016511,2]
[399575989,1766510468425,-500.0,0.00016511,2]
[399575990,1766510468451,-500.0,0.00016511,2]
[399575991,1766510468475,-150.0,0.00016511,2]
[399575992,1766510468502,-500.0,0.00016511,2]
[399575993,1766510468531,-500.0,0.00016511,2]
[399575994,1766510468560,-500.0,0.00016511,2]
[399575995,1766510468588,-417.88107537,0.00016511,2]
[399575996,1766510468613,-500.0,0.00016511,2]
[399575997,1766510468640,-500.0,0.00016511,2]
[399575998,1766510468672,-500.0,0.00016511,2]
[399575999,1766510468697,-469.79872516,0.00016511,2]
[399576000,1766510468724,-500.0,0.00016511,2]
[399576001,1766510468755,-500.0,0.00016511,2]
[399576002,1766510468782,-500.0,0.00016511,2]
[399576003,1766510468812,-500.0,0.00016511,2]
[399576004,1766510468842,-500.0,0.00016511,2]
[399576005,1766510468875,-468.02369112,0.00016511,2]
[399576006,1766510468904,-500.0,0.00016511,2]
[399576007,1766510468935,-500.0,0.00016511,2]
[399576008,1766510468966,-500.0,0.00016511,2]
[399576009,1766510468997,-500.0,0.00016511,2]
[399576010,1766510469027,-490.73817816,0.00016511,2]
[399576011,1766510469058,-574.61496138,0.00016511,2]
[399576012,1766510469088,-963522.14189741,0.00016512,2]
[399576013,1766510485990,-9474.00748917,0.00016512,2]
[399576014,1766510486100,-10000.01,0.00016512,2]
[399576015,1766510486237,-10000.01,0.00016512,2]
[399576016,1766510486394,-2996.17938658,0.00016512,2]
[399576017,1766510486429,-4007.65122684,0.00016512,2]
[399576018,1766510491971,-1000.0,0.000167,2]
[399576019,1766510491999,-151.0,0.00016771,2]
[399576020,1766510492029,-250.0,0.00017,2]
[399576021,1766510495839,683.735062,0.00016429,2]
[399576022,1766510501086,151.0,0.0001699,2]
[399576023,1766510528882,3563.540914,7.945e-05,2]
[399576024,1766510539508,-1000000.0,0.00016402,2]
[399576025,1766510540374,-1000.0,0.00016412,2]
[399576026,1766510540404,-250.0,0.00016682,2]
[399576027,1766510540433,-151.0,0.00016834,2]
[399576028,1766510540461,-151.0,0.00016961,2]
[399576029,1766510596505,-1049.401028,0.00016457,2]
[399576033,1766510730932,-2464.13,0.00014419,2]
[399576034,1766510730958,-2464.13,0.00015178,2]
[399576035,1766510730984,-250.0,0.00015861,2]
[399576036,1766510731010,-303.11653894,0.00015861,2]
[399576037,1766510731037,-2464.13,0.00015937,2]
[399576038,1766510731063,-2464.13,0.00016696,2]
[399576039,1766510731089,-3589590.36346106,0.00017,2]
[399576040,1766510752909,-151.0,0.000165,2]
[399576041,1766510752936,-99849.0,0.00017,2]
[399576042,1766510827983,4464.52282,7.945e-05,2]
[399576045,1766510899703,390.34503828,7.888e-05,2]
[399576056,1766511032227,-300.0,0.00015999,2]
[399576057,1766511032237,-6911.0,0.00016,4]
[399576058,1766511032250,-405.81277303,0.00016,4]
[399576059,1766511032281,-864.08449454,0.00016,4]
[399576060,1766511032292,-418.24853192,0.00016,4]
[399576061,1766511032304,-1932.64807024,0.00016,4]
[399576062,1766511032336,-255.0437,0.00016,4]
[399576063,1766511032348,-641.28142672,0.00016,4]
[399576064,1766511032360,-3305.23072429,0.00016,4]
[399576065,1766511032372,-522.04790989,0.00016,4]
[399576066,1766511032394,-1195.98280455,0.00016,4]
[399576067,1766511032406,-899.86519061,0.00016,4]
[399576068,1766511032419,-20005.74962001,0.00016,4]
[399576069,1766511032450,-40429.78290757,0.00016,4]
[399576070,1766511032463,-519.96880276,0.00016,4]
[399576186,1766511038389,-427.56333275,0.00016,4]
[399576187,1766511038402,-2890.27613519,0.00016,4]
[399576188,1766511038496,-624.76481377,0.00016,4]
[399576189,1766511038508,-465.16280073,0.00016,4]
[399576190,1766511038520,-43075.79939415,0.00016,4]
[399576191,1766511038530,-3116.41856404,0.000162,5]
[399576192,1766511038539,-200.0,0.0001634,2]
[399576193,1766511038550,-151.0,0.00016359,2]
[399576194,1766511038560,-200.0,0.00016806,2]
[399576195,1766511038570,-199.18607836,0.000169,2]
[399576196,1766511038581,-952.0,0.00016999,2]
[399576197,1766511038591,-500.0,0.00016999,2]
[399576198,1766511038601,-290.98146076,0.00016999,2]
[399576199,1766511038612,-278.11428498,0.00016999,2]
[399576200,1766511038622,-500.0,0.00016999,2]
[399576201,1766511038633,-220.71125758,0.00016999,2]
[399576202,1766511038642,-163.31096946,0.00016999,2]
[399576203,1766511038652,-385.33596568,0.00016999,2]
[399576204,1766511038662,-324.20900837,0.00016999,2]
[399576205,1766511038671,-708560.12582025,0.00017,2]
[399576206,1766511038683,-432.46183533,0.00017,2]
[399576207,1766511038698,-1171.02545934,0.00017,2]
[399576208,1766511038711,-347.19316082,0.00017,2]
[399576209,1766511038726,-495.31266721,0.00017,2]
[399576210,1766511038738,-2787.04073674,0.00017,2]
[399576270,1766511040362,-505454.79965172,0.00017,2]
[399576277,1766511040421,-131916.76732998,0.00017,2]
[399576279,1766511040438,-959.79,0.00017,2]
[399576281,1766511040451,-27659.82776326,0.00017,2]
[399576284,1766511040484,-2637.77061568,0.00017,2]
[399576290,1766511040595,-1790.09687237,0.00017,2]
[399576291,1766511040649,-42231.59934632,0.00017,2]
[399576292,1766511040659,-4764420.23973866,0.00017,2]
[399576303,1766511043602,-274.543,0.00017,2]
[399576304,1766511043614,-800.197906,0.00017,2]
[399576314,1766511044174,-87695.63295939,0.00017,2]
[399576315,1766511044188,-3318.44912896,0.00017,2]
[399576316,1766511044200,-353030.63353487,0.00017,2]
[399576317,1766511044213,-298.50596504,0.00017,2]
[399576325,1766511046421,-358.8,0.00017,2]
[399576338,1766511666767,500.0,0.00010959,30]
[399576339,1766511667211,500.0,0.00010959,30]
[399576340,1766511667626,500.0,0.00010959,30]
[399576341,1766511668043,605.5831541,0.00010959,30]
[399576349,1766512231372,-151.0,0.00016229,2]
[399576350,1766512231384,-151.0,0.00016231,2]
[399576351,1766512231394,-229.08129476,0.00016399,2]
[399576352,1766512231406,-807.845,0.00016446,2]
[399576353,1766512231416,-200.0,0.00016499,2]
[399576354,1766512231426,-200.0,0.00016499,2]
[399576355,1766512231436,-200.0,0.00016499,2]
[399576356,1766512231446,-952.0,0.00016681,2]
[399576357,1766512231456,-2019.14188582,0.00016682,2]
[399576358,1766512231469,-2488.79487899,0.00016682,2]
[399576359,1766512231485,-646.95932909,0.00016682,2]
[399576360,1766512231496,-999.0,0.00016682,2]
[399576361,1766512231508,-449.6702639,0.00016682,2]
[399576362,1766512231521,-4041.71374803,0.00016682,2]
[399576363,1766512231532,-2602.86816267,0.00016682,2]
[399576364,1766512231544,-1377.93241419,0.00016682,2]
[399576365,1766512231556,-1060.92531021,0.00016682,2]
[399576366,1766512231572,-17788.76896275,0.00016682,2]
[399576367,1766512231584,-371.16312353,0.00016682,2]
[399576368,1766512231596,-394.45008645,0.00016682,2]
[399576370,1766512231608,-286.96095259,0.00016682,2]
[399576372,1766512231621,-2648.80878799,0.00016682,2]
[399576375,1766512231638,-665.86849656,0.00016682,2]
[399576377,1766512231650,-803.51,0.00016682,2]
[399576379,1766512231661,-305.85181942,0.00016682,2]
[399576453,1766512237510,-151.0,0.00016228,2]
[399576454,1766512237521,-2852.18013005,0.00016682,2]
[399576456,1766512237617,-15513.85944776,0.00016682,2]
[399576457,1766512237630,-2262.0,0.00016682,2]
[399576458,1766512237640,-188.35124894,0.0001669,2]
[399576459,1766512237650,-4233.43022344,0.0001669,2]
[399576460,1766512237660,-165.52,0.00016712,2]
[399576461,1766512237671,-151.0,0.00016772,2]
[399576462,1766512237682,-151.0,0.00016772,2]
[399576463,1766512237692,-151.0,0.00016772,2]
[399576464,1766512237702,-151.0,0.00016772,2]
[399576465,1766512237712,-151.0,0.00016772,2]
[399576466,1766512237722,-151.0,0.00016772,2]
[399576467,1766512237732,-151.0,0.00016772,2]
[399576468,1766512237742,-151.0,0.00016772,2]
[399576469,1766512237752,-151.0,0.00016772,2]
[399576470,1766512237762,-151.0,0.00016772,2]
[399576471,1766512237772,-151.0,0.00016772,2]
[399576472,1766512237781,-163.31096946,0.00016781,2]
[399576473,1766512237791,-324.20900837,0.00016781,2]
[399576474,1766512237802,-500.0,0.00016781,2]
[399576475,1766512237811,-500.0,0.00016781,2]
[399576476,1766512237821,-500.0,0.00016781,2]
[399576477,1766512237831,-210.38989668,0.00016781,2]
[399576478,1766512237845,-150.0,0.00016781,2]
[399576479,1766512237855,-164902.74907188,0.00016782,2]
[399576480,1766512237871,-716041.39340948,0.00016782,2]
[399576481,1766512237885,-619.11954453,0.00016782,2]
[399576617,1766512239518,-118436.73797411,0.00016782,2]
[399576619,1766512239532,-3408.9774365,0.00016982,2]
[399576621,1766512239545,-111121.00471729,0.00016982,2]
[399576625,1766512239572,-1723.07381486,0.00016982,2]
[399576627,1766512239583,-9006.5371147,0.00016982,2]
[399576633,1766512239628,-424.34554978,0.00016982,2]
[399576639,1766512239685,-1279.2779985,0.00016982,2]
[399576646,1766512239738,-2919.09164166,0.00016982,2]
[399576658,1766512239897,-1294.25721866,0.00016982,2]
[399576660,1766512239910,-438.215,0.00016982,2]
[399576669,1766512242634,-1325.45,0.00016982,2]
[399576670,1766512242807,-3410.51349519,0.00016982,2]
[399576671,1766512242847,-836.99523524,0.00016982,2]
[399576672,1766512242900,-249.96589882,0.00016982,2]
[399576673,1766512242910,-4.4292365,0.00016982,2]
[399576674,1766512242922,-423.95581672,0.00016982,2]
[399576683,1766512245531,-2719.81803088,0.00016982,2]
[399576684,1766512245541,-439.09697445,0.00017,2]
[399576685,1766512245584,-4551.83650219,0.00017,2]
[399576686,1766512245743,-9057.77585375,0.00017,2]
[399576687,1766512245755,-308.93545843,0.00017,2]
[399576688,1766512245797,-778.86652638,0.00017,2]
[399576689,1766512245809,-40404.95478861,0.00017,2]
[399576690,1766512245821,-36643.84372399,0.00017,2]
[399576691,1766512245838,-7518.40000043,0.00017,2]
[399576702,1766512897659,10037.15924151,0.00022,30]
[399576703,1766513016459,-345.64556086,0.00013699,2]
[399576704,1766513048791,345.637377,7.945e-05,2]
[399576705,1766513195011,438.6,0.00012,7]
[399576706,1766513354132,-146.62443914,0.00013699,2]
[399576707,1766513354154,-250.0,0.00015068,2]
[399576708,1766513354175,-239.99958893,0.00015903,2]
[399576709,1766513354196,-1200.0,0.00016003,2]
[399576710,1766513354219,-300.0,0.00016003,2]
[399576711,1766513354240,-166.66,0.00016004,2]
[399576712,1766513354262,-500.0,0.00016004,2]
[399576713,1766513354283,-500.0,0.00016004,2]
[399576714,1766513354305,-500.0,0.00016004,2]
[399576715,1766513354327,-500.0,0.00016004,2]
[399576716,1766513354349,-500.0,0.00016004,2]
[399576717,1766513354372,-500.0,0.00016004,2]
[399576718,1766513354392,-116.92476593,0.00016004,2]
[399576723,1766513431567,-85.54077209,0.00016004,2]
[399576724,1766513431578,-200.0,0.00016088,2]
[399576725,1766513431588,-151.0,0.00016117,2]
[399576726,1766513431598,-151.0,0.00016121,2]
[399576727,1766513431608,-151.0,0.00016128,2]
[399576728,1766513431618,-151.0,0.00016136,2]
[399576729,1766513431628,-239.99958892,0.00016143,2]
[399576730,1766513431638,-948.01,0.00016145,2]
[399576731,1766513431648,-1450.59541066,0.0001625,2]
[399576732,1766513431660,-2806.17639834,0.0001625,2]
[399576733,1766513431671,-166.66,0.00016341,2]
[399576734,1766513431680,-239.99958892,0.00016382,2]
[399576735,1766513431690,-190.04332185,0.00016481,2]
[399576736,1766513431714,-300.0,0.00016481,2]
[399576737,1766513431724,-8148.24424414,0.00016482,2]
[399576738,1766513431737,-345.51780687,0.00016482,2]
[399576739,1766513431749,-303.63741467,0.00016482,2]
[399576740,1766513431762,-17600.85840616,0.00016482,2]
[399576741,1766513431775,-2238.41975202,0.00016482,2]
[399576742,1766513431787,-4625.7895929,0.00016482,2]
[399576745,1766513431799,-2535.48197541,0.00016482,2]
[399576747,1766513431811,-6165.28012438,0.00016482,2]
[399576897,1766513437727,-539.93551002,0.00016482,2]
[399576898,1766513437740,-86689.99999994,0.00016482,2]
[399576899,1766513437752,-871.06,0.00016482,2]
[399576900,1766513437764,-716041.39340948,0.00016482,2]
[399576901,1766513437780,-2192.20093113,0.00016482,2]
[399576902,1766513437792,-1173.61692769,0.00016482,2]
[399576903,1766513437804,-381.77751532,0.00016482,2]
[399576904,1766513437816,-2553.98606414,0.00016482,2]
[399576905,1766513437835,-13737.13719436,0.00016482,2]
[399576930,1766513439711,-842.6318335,0.00016482,2]
[399576931,1766513439743,-6676.0,0.00016482,2]
[399576940,1766513442745,-161.44392768,0.00016382,2]
[399576941,1766513442755,-48102.47046142,0.00016482,2]
[399576942,1766513442801,-1038.39988,0.00016482,2]
[399576943,1766513443019,-39462.74732428,0.00016482,2]
[399576944,1766513443031,-37733.41363217,0.00016482,2]
[399576945,1766513443041,-6493.9280507,0.00016482,2]
[399576946,1766513443051,-225.07851975,0.00016482,2]
[399576947,1766513443061,-151.0,0.00016572,2]
[399576948,1766513443072,-151.0,0.00016572,2]
[399576949,1766513443081,-151.0,0.00016572,2]
[399576950,1766513443091,-151.0,0.00016572,2]
[399576951,1766513443100,-151.0,0.00016572,2]
[399576952,1766513443111,-151.0,0.00016572,2]
[399576953,1766513443120,-151.0,0.00016572,2]
[399576954,1766513443130,-151.0,0.00016572,2]
[399576955,1766513443140,-151.0,0.00016572,2]
[399576956,1766513443150,-1094.43955386,0.00016581,5]
[399576957,1766513443159,-646.276,0.00016581,2]
[399576958,1766513443169,-500.0,0.00016581,2]
[399576959,1766513443180,-500.0,0.00016581,2]
[399576960,1766513443190,-500.0,0.00016581,2]
[399576961,1766513443200,-325.71022725,0.00016581,2]
[399576962,1766513443209,-600.0,0.00016582,2]
[399576963,1766513443219,-166.66,0.00016678,2]
[399576964,1766513443228,-1454.3177,0.00016682,2]
[399576965,1766513443238,-139393.13331627,0.00016821,2]
[399576966,1766513443251,-176484.57974053,0.00016821,2]
[399576967,1766513443261,-930.3686739,0.00016821,2]
[399576968,1766513443270,-267587.46457805,0.00017,2]
[399576969,1766513443283,-6088.69362824,0.00017,2]
[399576970,1766513443292,-200.0,0.00017,2]
[399576971,1766513443303,-1000.0,0.00017,2]
[399576972,1766513443313,-230.40995361,0.00017,2]
[399576973,1766513443322,-173.03903704,0.00017,2]
[399576974,1766513443332,-166.66,0.00017015,2]
[399576975,1766513443342,-2261.59,0.00017038,2]
[399576977,1766513443352,-600.0,0.0001713,2]
[399576978,1766513443362,-166.66,0.00017351,2]
[399576979,1766513443372,-2464.13,0.00017455,2]
[399576980,1766513443382,-150.0,0.00017604,3]
[399576981,1766513443392,-200.0,0.00017604,2]
[399576982,1766513443402,-4482.2563,0.00017644,2]
[399576983,1766513443412,-999.0,0.00017669,3]
[399576984,1766513443423,-600.0,0.00017678,2]
[399576985,1766513443433,-166.66,0.00017688,2]
[399576986,1766513443443,-200.0,0.00017734,2]
[399576987,1766513443455,-420.0,0.0001801,2]
[399576988,1766513443472,-166.76,0.00018048,2]
[399576989,1766513443481,-1000.0,0.00018082,2]
[399576990,1766513443492,-1000.0,0.00018209,2]
[399576991,1766513443502,-2464.13,0.00018214,2]
[399576992,1766513443512,-200.01,0.00018226,2]
[399576993,1766513443522,-7989.74542117,0.00018291,2]
[399576994,1766513443532,-1000.0,0.0001876,2]
[399576995,1766513443542,-766.19,0.0001883,2]
[399576996,1766513443552,-2464.13,0.00018973,2]
[399576997,1766513443562,-6493.9280507,0.00018973,2]
[399576998,1766513443572,-134597.30290777,0.00019,2]
[399576999,1766513443582,-1650.44016009,0.00019,2]
[399577000,1766513443592,-166.76,0.00019041,2]
[399577001,1766513443602,-1000.0,0.00019438,2]
[399577002,1766513443612,-587.0,0.00019682,2]
[399577003,1766513443621,-225.07851969,0.00019685,2]
[399577004,1766513443631,-2464.13,0.00019731,2]
[399577005,1766513443640,-500.0,0.0002,2]
[399577006,1766513443649,-500.0,0.00020001,2]
[399577007,1766513443659,-500.0,0.00020002,2]
[399577008,1766513443668,-499.9999,0.00020003,2]
[399577009,1766513443678,-10956.36469835,0.00020015,2]
[399577010,1766513443688,-166.76,0.00020034,2]
[399577011,1766513443697,-1000.0,0.00020116,2]
[399577012,1766513443707,-492.27,0.00020187,2]
[399577013,1766513443717,-50261.18374297,0.00020387,2]
[399577014,1766513443732,-331.6165,0.00020387,2]
[399577015,1766513443743,-13220.67230969,0.00020387,2]